{"text_format":"3","workbook":"xlsx","n_sheets":10,"sheets":["CAPTURA","CHEQUE CORTO","CHEQUE NVO","Orden sin recibo","orden con recibo","PAGARE","REGISTRO DE CHEQUES","CONCEPTO DE CHEQUE CHICO","PROVEEDORES","Transfer"],"not_rendered":{"macros":1,"external_links":3,"defined_names":34},"read":"whole","date_system":"1900"}

{"sheet":"CAPTURA","index":0,"n_rows":18,"n_cols":3,"rows_kept":18}
[]
[]
[]
[null,"CHEQUE",109]
[null,"FECHA","02 DE JULIO DE 2019"]
[null,"NOMBRE","MARCELO MARTINEZ NOLASCO"]
[null,"CANTIDAD",{"v":19007.9,"d":"19,007.90"}]
[null,"CONCEPTO","36 TUBOS RD 26 DE 4\" PARA ALMACEN Y REPARACIONES EN LAS DIFERENTES LOCALIDADES DEL MUNICIPIO"]
[null,"OBSERVACIONES"]
[null,"DEPARTAMENTO"]
[]
[]
[]
[]
[null,null,"                                                                      "]
[]
[]
[null,null," "]

{"sheet":"CHEQUE CORTO","index":1,"n_rows":25,"n_cols":3,"rows_kept":25,"merged":[[1,0,1,1],[2,0,2,3],[5,0,5,1]]}
[" ",null,{"$f":"+CAPTURA!C5","v":"02 DE JULIO DE 2019"}]
[{"$f":"+CAPTURA!C6","v":"MARCELO MARTINEZ NOLASCO"},null,{"$f":"+CAPTURA!C7","v":{"v":19007.9,"d":"19,007.90"}}]
[{"$f":"PesosMN(C2)","v":"( DIECINUEVE MIL SIETE PESOS 90/100 M.N.)"}]
[" "]
[null,"  "]
[{"$f":"+CAPTURA!C8","v":"36 TUBOS RD 26 DE 4\" PARA ALMACEN Y REPARACIONES EN LAS DIFERENTES LOCALIDADES DEL MUNICIPIO"}]
[]
[]
[" "]
[null,{"$f":"A2","v":"MARCELO MARTINEZ NOLASCO"}]
[null,null,{"$f":"+C2","v":{"v":19007.9,"d":"19,007.90"}}]
[null,{"$f":"+CAPTURA!C4","v":109}]
[]
[]
[]
[]
[]
[" "]
[]
[]
[]
[]
[]
[]
[null,null,{"$f":"+C11","v":{"v":19007.9,"d":"19,007.90"}}]

{"sheet":"CHEQUE NVO","index":2,"n_rows":15,"n_cols":11,"rows_kept":15,"merged":[[0,1,0,2],[1,0,1,1],[2,0,2,3],[6,1,6,2],[7,0,7,1],[8,0,8,3],[14,0,17,3]]}
[" ",{"$f":"+CAPTURA!C5","v":"02 DE JULIO DE 2019"}]
[{"$f":"+CAPTURA!C6","v":"MARCELO MARTINEZ NOLASCO"},null,{"$f":"+CAPTURA!C7","v":{"v":19007.9,"d":"19,007.90"}}]
[{"$f":"PesosMN(C2)","v":"( DIECINUEVE MIL SIETE PESOS 90/100 M.N.)"}]
[" "]
[]
[" "]
[null,{"$f":"B1","v":"02 DE JULIO DE 2019"}]
[{"$f":"A2","v":"MARCELO MARTINEZ NOLASCO"},null,{"$f":"C2","v":{"v":19007.9,"d":"19,007.90"}}]
[{"$f":"PesosMN(C8)","v":"( DIECINUEVE MIL SIETE PESOS 90/100 M.N.)"}]
[null,"CHEQUE",{"$nulls":8}," "]
[null,{"$f":"+CAPTURA!C4","v":109}]
[]
[]
[]
[{"$f":"+CAPTURA!C8","v":"36 TUBOS RD 26 DE 4\" PARA ALMACEN Y REPARACIONES EN LAS DIFERENTES LOCALIDADES DEL MUNICIPIO"}]

{"sheet":"Orden sin recibo","index":3,"n_rows":38,"n_cols":76,"rows_kept":38,"merged":[[5,10,6,10],[12,2,12,7],[16,2,16,7],[34,2,34,3],[34,5,34,7]]}
[]
[]
[]
[]
[]
[{"$nulls":3},"                                                                                          ",{"$nulls":6},"Numero de Cheque"]
[]
[{"$nulls":10},50]
[null,null,"                                           ",null," "]
[null,null,"      "]
[null,null,"                                                                                                                                                                                                                                                                                                                                                                                                                                                                                                                                                                                 "]
[null,"                                         ",{"$nulls":4},"      ",{"$f":"+VLOOKUP(F26,'REGISTRO DE CHEQUES'!A1:G4980,4,FALSE)","v":{"$error":"#N/A"}}]
[null,null,{"$f":"PesosMN(H12)","v":{"$error":"#VALUE!"}}]
[null,null,"                            ",null," "]
[null,"                        ","      ","                                 "," ",null,null," "]
[]
[null,null,{"$f":"+VLOOKUP(F26,'REGISTRO DE CHEQUES'!A1:G4980,5,FALSE)","v":{"$error":"#N/A"}}]
[{"$nulls":75},"Z"]
["  "]
[null,null,"            "]
[null,null,"      ",null," "]
[null,null,"     "]
[null,null,"                        "]
[null,null,"     "," "]
[null,null,"               ",null,null,"            "]
[null,null,"     ","CHEQUE",null,{"$f":"+VLOOKUP(K8,'REGISTRO DE CHEQUES'!A1:G4980,1,FALSE)","v":{"$error":"#N/A"}}]
[{"$nulls":4}," "]
[null,null,"      "," ",null," ",null,"                                                                                                                                                                                                                                                                                                                                                                         "]
[null,null,"     "]
[null,null,"      "]
[null,null,"       "]
[null,null,"      "]
[null,null,"      ",null,null," "]
[null,null,"                                  ",{"$nulls":4}," "]
[null,null,"IXTLAHUACAN DE LOS MEMBRILLOS, JAL. ",null,null,{"$f":"+VLOOKUP(F26,'REGISTRO DE CHEQUES'!A1:G4980,2,FALSE)","v":{"$error":"#N/A"}}]
[null,null,"          "]
[]
["PROF. RODOLFO GONZALEZ HERNANDEZ"]

{"sheet":"orden con recibo","index":4,"n_rows":43,"n_cols":9,"rows_kept":43,"merged":[[1,8,2,8],[9,1,9,6],[14,0,14,3],[19,5,19,6],[20,5,20,6],[27,5,27,6],[28,1,28,6],[29,1,29,6],[31,3,31,6],[33,2,33,6],[35,1,35,6],[39,0,39,3],[39,4,39,5],[42,3,42,5]]}
[]
[{"$nulls":8},"Numero de Cheque"]
[]
[{"$nulls":8},109]
[]
[]
[{"$nulls":4},{"$f":"+VLOOKUP(E23,'REGISTRO DE CHEQUES'!A1:G4980,3,FALSE)","v":"MARCELO MARTINEZ NOLASCO"}]
[]
[{"$nulls":5},{"$f":"+VLOOKUP(E23,'REGISTRO DE CHEQUES'!A1:G4980,4,FALSE)","v":{"v":19007.9,"d":"19,007.90"}}]
[null,{"$f":"PesosMN(F9)","v":"( DIECINUEVE MIL SIETE PESOS 90/100 M.N.)"}]
[]
[{"$nulls":4},"  "]
[]
[]
["IXTLAHUACAN DE LOS MEMBRILLOS ",{"$nulls":4},{"$f":"+VLOOKUP(E23,'REGISTRO DE CHEQUES'!A1:G4980,2,FALSE)","v":"02 DE JULIO DE 2019"}]
[]
[]
[]
[]
[]
["PROF. RODOLFO GONZALEZ HERNANDEZ"]
[]
[{"$nulls":4},{"$f":"+VLOOKUP(I4,'REGISTRO DE CHEQUES'!A1:G4980,1,FALSE)","v":109}]
[]
[]
[]
[{"$nulls":5},{"$f":"F9","v":{"v":19007.9,"d":"19,007.90"}}]
[]
[null,"IXTLAHUACAN DE LOS MEMBRILLOS, JALISCO"]
[]
[null,null," "]
[null,{"$f":"F9","v":{"v":19007.9,"d":"19,007.90"}},null,{"$f":"B10","v":"( DIECINUEVE MIL SIETE PESOS 90/100 M.N.)"}]
[]
[]
[]
[null,{"$f":"+VLOOKUP(E23,'REGISTRO DE CHEQUES'!A1:G4980,5,FALSE)","v":"36 TUBOS RD 26 DE 4\" PARA ALMACEN Y REPARACIONES EN LAS DIFERENTES LOCALIDADES DEL MUNICIPIO"}]
[]
[]
[]
["IXTLAHUACAN DE LOS MEMBRILLOS",{"$nulls":3},{"$f":"+F15","v":"02 DE JULIO DE 2019"}]
["  "]
[]
[{"$nulls":3},{"$f":"E7","v":"MARCELO MARTINEZ NOLASCO"}]

{"sheet":"PAGARE","index":5,"n_rows":11,"n_cols":14,"rows_kept":11,"merged":[[1,0,1,1],[1,4,1,9],[1,12,1,14],[2,7,2,8],[2,13,2,14],[3,2,3,10],[5,0,5,14],[8,1,8,6],[8,7,8,14],[9,1,9,9],[10,1,10,6]]}
[]
[{"$f":"+CAPTURA!C4","v":109},{"$nulls":3},"VENCIMIENTO",{"$nulls":7},{"$f":"+CAPTURA!C7","v":{"v":19007.9,"d":"19,007.90"}}]
[{"$nulls":3},"ZCO",null,"ME",null,"O",{"$nulls":5},"ME"]
[null,null,"MUNICIPIO DE IXTLAHUACAN DE LOS MEMBRILLOS"]
[]
[{"$f":"PesosMN(M2)","v":"( DIECINUEVE MIL SIETE PESOS 90/100 M.N.)"}]
[]
[]
[null,{"$f":"+CAPTURA!C6","v":"MARCELO MARTINEZ NOLASCO"},{"$nulls":5},{"$f":"+CAPTURA!C5","v":"02 DE JULIO DE 2019"}]
[null,{"$f":"+CAPTURA!C10","v":0}]
[null,"IXTLAHUACAN DE LOS MEMBRILLOS"]

{"sheet":"REGISTRO DE CHEQUES","index":6,"n_rows":67,"n_cols":7,"rows_kept":67}
["CHEQUE","FECHA","NOMBRE","CANTIDAD","CONCEPTO","OBSERVACIONES","DEPARTAMENTO"]
[86,"22 DE ENERO DE 2019","CFE SUMINISTRADOR DE SERVICIOS BASICOS ",{"v":226253,"d":"226,253.00"},"PAGO DE ENERGIA ELECTRICA CORRESPONDIENTE AL MES DE NOVIEMBRE Y DICIEMBRE 2018"]
[87,"08 DE FEBRERO DE 2019","SERGIO HERRERA ENCISO",{"v":16936,"d":"16,936.00"},"MATERIAL SOLICITADO PARA ALMACEN Y LAS DIFERENTES CUADRILLAS SAMAPA"]
[88,"08 DE FEBRERO DE 2019","JOSE  CARLOS GUTIERREZ FLORES",{"v":5104,"d":"5,104.00"},"RETROEXCAVADORA Y ARENA SOLICITADO PARA CAMBIAR LINEA DE DRENAJE EN LOMAS DE ATEQUIZA."]
[89,"08 DE FEBRERO DE 2019","EMILIO GONZALEZ DELGADILLO",{"v":2555.07,"d":"2,555.07"},"(GASTOS A COMPROBAR) PAPELERIA Y PRODUCTOS DE LIMPIEZA PARA OFICINAS SAMAPA"]
[90,"08 DE FEBRERO DE 2019","OSCAR JAVIER PEREZ GARCIA",{"v":3480,"d":"3,480.00"},"REPARACION A TANQUE DE ALUMINIO DEL CAMION TIPO VACTOR"]
[91,"08 DE FEBRERO DE 2019","TUBERIAS Y CONEXIONES DEL LAGO SA DE CV",{"v":68017.94,"d":"68,017.94"},"MATERIAL SOLICITADO PARA ALMACEN Y CUADRILLAS SAMAPA"]
[92,"11 DE FEBRERO DE 2019","FRANCISCO CORTES SANDOVAL",{"v":26680,"d":"26,680.00"},"MOTO SOLDADORA A GASOLINA ( PARA  SAMAPA)"]
[93,"12 DE FEBRERO DE 2019","JOSE ABEL MARTINEZ GARCIA",{"v":265000,"d":"265,000.00"},"GASTOS A COMPROBAR ( ANTICIPO DE SUSTITUCION DE 400 MTS DE RED DE AGUA EN CALLE VISTA HERMOSA EN FRACC. BUENAVISTA)"]
[94,"11 DE FEBRERO DE 2019","FELIPE HERRERA ENCISO",{"v":27261.16,"d":"27,261.16"},"MATERIAL SOLICITADIO PARA ALMACEN Y LAS DIFERENTEAS CUADRILLAS SAMAPA"]
[95,"12 DE FEBRERO DE 2019","ALEJANDRO MARIA LAZCANO",{"v":2000,"d":"2,000.00"},"PRESTAMO PERSONAL A EMPLEADO SAMAPA"]
[96,"13 DE FEBRERO DE 2019","SERVICIOS Y PRODUCTOS PRODEC S.A. DE C.V.",{"v":45918.6,"d":"45,918.60"},"PIEZAS DE CLORADORES DE LAS DIFERENTES FUENTES DE ABASTECIMIENTO DE AGUA POTABLE DEL MUNICIPIO"]
[97,"13 DE FEBRERO DE 2019","VICTOR ADRIAN MARTINEZ MARTINE","CANCELADO","SERVICIO DE MANTENIMIENTO Y MANO DE OBRA A CHEVROLET 3 TONELADAS"]
[98,"13 DE FEBRERO DE 2019","VICTOR ADRIAN MARTINEZ MARTINE","CANCELADO","SERVICIO DE MANTENIMIENTO Y REPARACION Y MANO DE OBRA A VEHICULO SAMAPA"]
[99,"13 DE FEBRERO DE 2019","VICTOR ADRIAN MARTINEZ MARTINEZ",{"v":3658.64,"d":"3,658.64"},"SERVICIO DE MANTENIMIENTO Y REPARACION Y MANO DE OBRA A VEHICULO SAMAPA"]
[100,"13 DE FEBRERO DE 2019","VICTOR ADRIAN MARTINEZ MARTINEZ",{"v":3389.6,"d":"3,389.60"},"SERVICIO DE MANTENIMIENTO Y REPARACION Y MANO DE OBRA A VEHICULO 3 TONELADAS SAMAPA"]
[101,"15 DE FEBRERO DE 2019","JOSE MANUEL SANCHEZ TEUTLE","CANCELADO","PRESMO PERSONAL A EMPLEADO SAMAPA"]
[102,"15 DE FEBRERO DE 2019","JOSE MANUEL SANCHEZ TEUTLE",{"v":3000,"d":"3,000.00"},"PRESMO PERSONAL A EMPLEADO SAMAPA"]
[103,"15 DE FEBRERO DE 2019","MARTIN ESPARZA CLAUDIO",{"v":2000,"d":"2,000.00"},"PRESMO PERSONAL A EMPLEADO SAMAPA"]
[104,"15 DE FEBRERO DE 2019","MANUEL PULIDO VALDEZ",{"v":2000,"d":"2,000.00"},"PAGO A BOMBERO DE BUENAVISTA CORRESPONDIENTE A PRIMERA QUINCENA DE FEBRERO 2019"]
[105,"16 DE MAYO DE 2019","LAMAS INFANTE GUILLERMO",{"v":12760,"d":"12,760.00"},"REPARACION DE EMBOBINADO DE MOTOR 25 HP Y CAMBIO DE 2 BALEROS, DE BOMBA DE REBOMBEO DE LA CISTERNA DE SABINOS 1"]
[106,"17 DE MAYO DE 2019","FRANCISCO CORTES SANDOVAL",{"v":485000,"d":"485,000.00"},"COMPLEMENTO DE PAGO TOTAL DE COLECTOR PLUVIAL CON RED SANITARIA E HIDRAULICA , EN TRAMO DE 144.5 MTS. EN CALLE HIDALGO DE ESTA CABECERA MUNICIPAL"]
[107,"01 DE JULIO DE 2019","TUBERIAS Y CONEXIONES DEL LAGO SA DE CV",{"v":31000.79,"d":"31,000.79"},"MATERIAL SOLICITADO PARA ALMACEN Y LAS DIFERENTES CUADRILLAS SAMAPA"]
[108,"01 DE JULIO DE 2019","FELIPE HERRERA ENCISO",{"v":9303.2,"d":"9,303.20"},"MATERIAL SOLICITADO PARA ALMACEN Y LAS DIFERENTES CUADRILLAS SAMAPA"]
[109,"02 DE JULIO DE 2019","MARCELO MARTINEZ NOLASCO",{"v":19007.9,"d":"19,007.90"},"36 TUBOS RD 26 DE 4\" PARA ALMACEN Y REPARACIONES EN LAS DIFERENTES LOCALIDADES DEL MUNICIPIO"]
{"$rows_empty":41}
[{"$nulls":3},{"$f":"SUM(D38:D56)","v":0}]

{"sheet":"CONCEPTO DE CHEQUE CHICO","index":7,"n_rows":1,"n_cols":1,"rows_kept":1,"hidden":true}
["CONCEPTOS DE PAGO"]

{"sheet":"PROVEEDORES","index":8,"n_rows":32,"n_cols":1,"rows_kept":32}
["NOMBRE"]
["BENJAMIN MUÑOZ GALVEZ "]
["BENJAMIN MUÑOZ GALVEZ "]
["COMISIION FEDERAL DE ELECTRICIDAD"]
["CRISTIAN ARON IBON VEJAR"]
["EDUARDO ALON VACA JIM"]
["ELECTRICA 2004 SA DE CV"]
["ELECTRICA 2004 SA DE CV"]
["FRANCISCO JAVIER HERRERA ENCISO"]
["GUILLERMO LAMAS INFANTE"]
["J.JESUS MACIAS VENEGAS"]
["JORGE ANDRES MANCILLA CASTILLO"]
["JORGE ANDRES MANCILLA CASTILLO"]
["JOSE SALVADOR TELLEZ ROSALES "]
["MANUELA ROJAS GOMEZ"]
["MAURO GOMEZ CORDOVA"]
["PABLO DANIEL RAMIREZ HERNANDEZ"]
["RUBEN MORA NERI"]
["SUSETEC SA DECV"]
["TERESA DE JESUS ENCISO GUILLEN"]
["TUBERIAS Y CONEXIONES DEL LAGO SA DE CV"]
["TUBERIAS Y CONEXIONES DEL LAGO SA DE CV"]
["FELIPE HERRERA ENCISO"]
["CFE SUMINISTRADOR DE SERVICIOS BASICOS "]
["MARIA GUADALUPE PACHECO CANDELARIO"]
["ALEJANDRO IGNACIO RAMIREZ MACIAS"]
["ZAIRA YURIDIA VAZQUEZ MEZA"]
["GONZALEZ CASILLAS JOSE JUAN"]
["JOSE LUIS ENCISO CASTAÑEDA"]
["JOSE AGUSTIN JIMENEZ GUERRERO"]
["JOSE VICENTE ROMERO RUIZ "]
["CFE SUMINISTRADOR DE SERVICIOS BASICOS "]

{"sheet":"Transfer","index":9,"n_rows":38,"n_cols":76,"rows_kept":38,"merged":[[4,10,5,10],[12,2,12,7],[16,2,16,7],[34,2,34,3],[34,5,34,7]]}
[]
[]
[]
[]
[{"$nulls":3},"                                                                                          ",{"$nulls":6},"Numero de Cheque"]
[]
[{"$nulls":10},452036]
[]
[null,null,"                                           ",null," "]
[null,null,"      "]
[null,null,"                                                                                                                                                                                                                                                                                                                                                                                                                                                                                                                                                                                 "]
[null,"                                         ",{"$nulls":4},"      ",{"$f":"+VLOOKUP(F26,'REGISTRO DE CHEQUES'!A1:G4980,4,FALSE)","v":{"$error":"#N/A"}}]
[null,null,{"$f":"PesosMN(H12)","v":{"$error":"#VALUE!"}}]
[null,null,"                            ",null," "]
[null,"                        ","      ","                                 "," ",null,null," "]
[]
[null,null,{"$f":"+VLOOKUP(F26,'REGISTRO DE CHEQUES'!A1:G4980,5,FALSE)","v":{"$error":"#N/A"}}]
[{"$nulls":75},"Z"]
["  "]
[null,null,"            "]
[null,null,"      ",null," "]
[null,null,"     "]
[null,null,"                        "]
[null,null,"     "," "]
[null,null,"               ",null,null,"            "]
[null,null,"     ","Transferencia",null,{"$f":"+VLOOKUP(K7,'REGISTRO DE CHEQUES'!A1:G4980,1,FALSE)","v":{"$error":"#N/A"}}]
[{"$nulls":4}," "]
[null,null,"      "," ",null," ",null,"                                                                                                                                                                                                                                                                                                                                                                         "]
[null,null,"     "]
[null,null,"      "]
[null,null,"       "]
[null,null,"      "]
[null,null,"      ",null,null," "]
[null,null,"                                  ",{"$nulls":4}," "]
[null,null,"IXTLAHUACAN DE LOS MEMBRILLOS, JAL. ",null,null,{"$f":"+VLOOKUP(F26,'REGISTRO DE CHEQUES'!A1:G4980,2,FALSE)","v":{"$error":"#N/A"}}]
[null,null,"          "]
[]
["PROF. RODOLFO GONZALEZ HERNANDEZ"]